bitfinex/quotes_ETHUSD_20220119
["timestamp","ask_amount","ask_price","bid_price","bid_amount"]
[1642615802687,0.0022737,3145.4,3145.3,5.45]
[1642615803684,0.0022737,3145.4,3145.2,0.7948003]
[1642615804259,0.72303812,3146.1,3145.4,0.7947357]
[1642615804459,1.55089094,3146.9,3145.5,0.71098938]
[1642615804645,1.55089094,3146.9,3145.5,5.25240367]
[1642615804646,0.72261074,3146.8,3145.5,5.25240367]
[1642615804846,0.00397897,3145.7,3145.6,7.60492425]
[1642615805048,1.47646351,3146.9,3146.3,0.3]
[1642615805049,1.38047597,3146.9,3146.3,0.3]
[1642615805248,0.72194776,3146.8,3146.3,0.3]
[1642615805447,0.72194776,3146.8,3145.8,0.15867]
[1642615805647,0.00568423,3146.7,3146.0,1.589262]
[1642615806048,0.00568423,3146.7,3146.0,1.889262]
[1642615806049,0.72706357,3146.6,3146.0,1.889262]
[1642615806248,0.72194776,3146.5,3146.0,1.889262]
[1642615806456,0.72649514,3146.5,3146.0,1.889262]
[1642615806652,0.72592672,3146.4,3146.0,3.4785402]
[1642615806847,0.00397896,3146.4,3146.0,6.12857854]
[1642615807048,0.00341054,3146.3,3146.0,3.4785402]
[1642615807548,0.00284211,3146.2,3146.0,3.4785402]
[1642615807985,0.00227369,3146.1,3146.0,3.4785402]
[1642615809592,0.00227369,3146.1,3146.0,1.8892782]
[1642615809793,0.00227369,3146.1,3146.0,4.4892782]
[1642615810394,0.00227369,3146.1,3146.0,1.5892782]
[1642615812138,0.00227369,3146.1,3146.0,1.8892782]
[1642615812541,5.01686659,3147.1,3146.0,8.15259699]
[1642615812542,5.0048,3147.1,3146.0,8.15259699]
[1642615812741,5.0048,3147.1,3146.2,1.5888493]
[1642615812943,0.00397897,3146.8,3146.3,0.4907439]
[1642615813142,0.00397897,3146.8,3146.3,1.0907439]
[1642615813346,0.00341054,3146.7,3146.3,1.057]
[1642615813545,0.00341054,3146.7,3146.3,0.3]
[1642615813742,1.2023126,3146.9,3146.0,0.127]
[1642615813743,0.95515472,3146.9,3146.0,0.127]
[1642615813946,0.79478,3146.7,3146.0,0.127]
[1642615814145,1.42130534,3146.3,3146.1,0.00284212]
[1642615814641,1.42130534,3146.3,3145.9,0.00397897]
[1642615814845,1.13673685,3146.8,3145.9,0.00397897]
[1642615815046,1.08673685,3146.8,3146.0,0.79471]
[1642615815498,1.08673685,3146.8,3146.1,0.00397897]
[1642615816104,3.872,3147.0,3146.3,1.44463997]
[1642615816308,1.55089094,3147.5,3146.5,0.7944781]
[1642615816506,3.32751939,3148.2,3146.6,0.49470953]
[1642615816507,1.55089094,3147.8,3146.6,0.49470953]
[1642615816705,11.71289563,3148.2,3146.6,1.44694638]
[1642615816706,0.00113684,3147.0,3146.6,1.44694638]
[1642615817007,1.55089094,3148.1,3147.0,6.05]
[1642615817205,1.14029515,3147.8,3147.2,1.588552]
[1642615817602,1.14029515,3147.8,3147.3,0.3]
[1642615817803,1.14029515,3147.8,3147.2,1.588552]
[1642615818004,4.01549388,3147.7,3146.7,0.00170527]
[1642615818203,4.01549388,3147.7,3146.7,1.59066747]
[1642615818204,1.27306365,3147.7,3146.7,1.59066747]
[1642615818403,1.55061957,3147.3,3146.7,1.5889622]
[1642615818606,0.00341054,3147.6,3146.8,0.00113684]
[1642615818808,0.00113685,3147.2,3146.8,0.00113684]
[1642615819007,0.00284212,3147.5,3146.8,0.00113684]
[1642615819245,1.45871252,3147.0,3146.8,0.00113684]
[1642615819643,0.00284212,3147.5,3146.8,0.79560654]
[1642615820140,1.55089094,3148.1,3146.9,0.03065881]
[1642615820141,0.0022737,3147.4,3146.9,0.03065881]
[1642615820346,0.0022737,3147.4,3147.0,1.5886271]
[1642615820546,0.00170527,3147.3,3147.1,0.0310093]
[1642615820849,0.00113685,3147.2,3146.8,0.00113684]
[1642615821244,0.00113685,3147.2,3146.7,0.00170527]
[1642615821845,0.00113685,3147.2,3146.7,0.79621147]
[1642615821846,1.16167133,3147.1,3146.7,0.79621147]
[1642615822047,1.16167133,3147.1,3146.7,0.30170527]
[1642615822251,1.16167133,3147.1,3146.8,0.00113684]
[1642615822985,1.16167133,3147.1,3146.7,0.00170527]
[1642615823385,0.00113685,3147.2,3146.7,0.79615987]
[1642615823784,0.00113685,3147.2,3146.8,0.00113684]
[1642615824391,0.00113685,3147.2,3146.8,1.58996824]
[1642615825088,0.00113685,3147.2,3146.8,0.00113684]
[1642615826092,1.53732184,3146.9,3146.8,0.00113684]
[1642615826492,2.72805985,3146.9,3146.8,0.00113684]
[1642615826748,2.72805985,3146.9,3146.5,0.00284212]
[1642615827134,2.72805985,3146.9,3146.3,0.00397896]
[1642615827342,1.19073801,3146.9,3146.6,0.7945643]
[1642615827637,9.59203685,3147.2,3146.7,0.3]
[1642615827833,4.82533685,3147.2,3146.7,0.30170527]
[1642615828035,4.82533685,3147.2,3146.8,0.79552684]
[1642615828036,0.00113685,3147.2,3146.8,0.79552684]
[1642615828235,0.00113685,3147.2,3146.9,1.17526504]
[1642615828439,0.1,3148.2,3147.0,11.32255376]
[1642615828636,0.70682301,3148.1,3147.3,0.79421]
[1642615828837,0.00227369,3147.6,3147.4,3.3884134]
[1642615829037,0.00227369,3147.6,3147.4,0.49044707]
[1642615829239,0.00170527,3147.5,3147.4,0.457]
[1642615829938,0.1,3148.2,3147.4,0.457]
[1642615830341,0.1,3148.2,3147.5,0.7943092]
[1642615830342,1.35984805,3147.8,3147.5,0.7943092]
[1642615830593,1.45925357,3147.8,3147.6,0.3]
[1642615830891,1.45925357,3147.8,3147.5,0.7943092]
[1642615830892,0.00113685,3147.7,3147.5,0.7943092]
[1642615831291,1.41039042,3147.8,3147.5,0.7943092]
[1642615831494,0.1,3148.2,3147.5,0.7943092]
[1642615831892,1.17509351,3147.8,3147.4,2.0454994]
[1642615832094,1.17509351,3147.8,3147.4,0.457]
[1642615832095,0.02986452,3147.7,3147.4,0.457]
[1642615832294,0.02986452,3147.7,3147.5,0.00113684]
[1642615832697,0.02986452,3147.7,3147.2,0.00284212]
[1642615832892,0.82441452,3147.7,3147.0,0.00397897]
[1642615833296,1.50789053,3147.1,3147.0,0.00397897]
[1642615833695,1.50789053,3147.1,3146.8,0.00511581]
[1642615834094,1.50789053,3147.1,3146.4,0.00738951]
[1642615834346,1.50789053,3147.1,3146.5,0.00682109]
[1642615834550,1.50789053,3147.1,3146.4,0.00738951]
[1642615834947,1.50789053,3147.1,3145.7,0.03062264]
[1642615834948,1.50789053,3147.1,3146.2,0.00852636]
[1642615835147,1.50789053,3147.1,3145.7,3.5]
[1642615835148,1.28142478,3146.2,3145.8,0.04584737]
[1642615835350,1.0,3147.2,3145.8,0.01080005]
[1642615835351,1.39115722,3146.4,3145.8,0.01080005]
[1642615835547,1.0,3147.2,3145.8,0.01080005]
[1642615835548,1.0,3147.2,3145.9,1.59956713]
[1642615835747,1.0,3147.2,3145.9,1.8893355]
[1642615835948,1.2028,3147.3,3146.0,0.0096632]
[1642615836550,1.48999191,3147.0,3146.0,0.0096632]
[1642615836750,1.32615941,3146.7,3146.2,0.7946243]
[1642615836948,1.32615941,3146.7,3146.3,0.3]
[1642615837151,1.32615941,3146.7,3146.3,0.00795793]
[1642615837348,1.32615941,3146.7,3146.4,0.00738951]
[1642615837548,1.32615941,3146.7,3145.7,0.31136847]
[1642615837989,1.32615941,3146.7,3145.8,0.01080005]
[1642615838187,1.24439496,3146.1,3146.0,0.7947362]
[1642615838391,1.24439496,3146.1,3146.0,1.0947362]
[1642615838591,1.24439496,3146.1,3146.0,1.1043994]
[1642615838992,1.24439496,3146.1,3146.0,0.3096632]
[1642615839392,1.24439496,3146.1,3146.0,0.0096632]
[1642615839792,1.24439496,3146.1,3145.9,0.7947422]
[1642615839992,1.24439496,3146.1,3146.0,0.0096632]
[1642615840400,1.24439496,3146.1,3146.0,0.3096632]
[1642615840996,1.24439496,3146.1,3146.0,0.0096632]
[1642615841199,3.94439496,3146.1,3146.0,0.0096632]
[1642615841400,3.94439496,3146.1,3145.8,0.01080005]
[1642615841858,3.94439496,3146.1,3145.7,0.3]
[1642615842061,3.94439496,3146.1,3145.8,0.01080005]
[1642615842563,0.79501,3146.0,3145.8,0.01080005]
[1642615842759,0.79501,3146.0,3145.1,0.3]
[1642615842760,2.62273783,3145.6,3145.1,0.3]
[1642615842959,2.62273783,3145.6,3145.1,0.31477901]
[1642615842960,1.40449484,3145.6,3145.1,0.31477901]
[1642615843164,1.40449484,3145.6,3145.2,0.01421059]
[1642615845265,8.6766,3146.2,3145.3,0.15867]
[1642615845500,8.6766,3146.2,3145.2,0.01421059]
[1642615845694,8.6766,3146.2,3145.4,0.01307374]
[1642615845890,8.6766,3146.2,3145.2,0.01421059]
[1642615846094,8.6766,3146.2,3145.1,0.01477901]
[1642615846495,8.6766,3146.2,3145.4,0.79477]
[1642615846696,8.6766,3146.2,3145.4,3.16357015]
[1642615846697,1.47144601,3146.0,3145.4,3.16357015]
[1642615846897,1.47144601,3146.0,3145.5,0.01250532]
[1642615847696,1.18218036,3146.1,3145.5,0.01250532]
[1642615848302,6.54158983,3146.7,3145.5,0.31250532]
[1642615848498,6.2196,3146.7,3145.8,0.7946706]
[1642615848899,6.2196,3146.7,3146.0,1.5892477]
[1642615848900,7.4983361,3146.7,3146.0,1.5892477]
[1642615849104,7.4983361,3146.7,3146.0,1.8892477]
[1642615849348,7.4983361,3146.7,3146.1,0.00909478]
[1642615849548,1.50321459,3146.5,3146.1,0.00909478]
[1642615849752,0.68955452,3146.4,3146.1,0.00909478]
[1642615851551,0.68955452,3146.3,3146.1,0.00909478]
[1642615851751,7.4983361,3146.7,3146.1,0.00909478]
[1642615852052,0.68782009,3146.6,3146.1,0.00909478]
[1642615853090,7.4983361,3146.7,3146.1,0.00909478]
[1642615853691,8.89050591,3146.7,3146.1,1.15674865]
[1642615853890,7.69450591,3146.7,3146.1,1.15674865]
[1642615854091,7.69450591,3146.7,3146.2,0.00852636]
[1642615854495,7.64450591,3146.7,3146.2,0.00852636]
[1642615854898,7.64450591,3146.7,3146.2,2.6732321]
[1642615854899,4.9736,3146.7,3146.2,2.6732321]
[1642615855094,0.79465,3147.3,3146.2,2.6732321]
[1642615855095,4.9547,3147.7,3146.3,0.04484002]
[1642615855297,4.9547,3147.7,3146.5,0.01416225]
[1642615855596,4.9547,3147.7,3146.6,0.457]
[1642615855795,2.3781,3147.6,3146.6,0.50211161]
[1642615856003,0.68766496,3147.5,3147.1,1.12338136]
[1642615856199,0.68766496,3147.5,3146.7,0.03765004]
[1642615856399,0.68766496,3147.4,3147.2,0.00284212]
[1642615856597,9.19690228,3147.7,3147.1,1.0943251]
[1642615856598,0.68766496,3147.3,3147.1,1.0943251]
[1642615856844,8.00150228,3147.7,3147.2,0.00284212]
[1642615857047,0.0297912,3147.5,3147.2,0.00284212]
[1642615857547,1.19208878,3147.4,3147.2,0.00284212]
[1642615857746,5.06259139,3147.3,3147.2,0.00284212]
[1642615857946,5.06259139,3147.3,3147.0,0.00397897]
[1642615857947,3.45,3147.3,3147.0,0.00397897]
[1642615858151,3.45,3147.3,3146.8,0.00511581]
[1642615858350,4.24459,3147.3,3147.1,0.00341054]
[1642615858552,4.24459,3147.3,3146.7,0.757]
[1642615858553,3.45,3147.3,3146.8,0.00511581]
[1642615858952,3.4,3147.3,3146.8,0.00511581]
[1642615859150,2.82737198,3147.2,3146.8,0.00511581]
[1642615859358,1.0,3147.1,3146.8,0.00511581]
[1642615859554,1.0,3147.1,3146.4,0.00738951]
[1642615859751,6.32279139,3147.1,3146.0,0.0096632]
[1642615859951,1.61259139,3147.0,3145.6,0.0119369]
[1642615860151,1.61259139,3147.0,3145.7,0.7947737]
[1642615860352,1.3516049,3146.6,3145.7,0.7947737]
[1642615860618,1.61259139,3146.9,3145.8,1.40336281]
[1642615860619,0.79478,3146.7,3145.8,1.40336281]
[1642615861008,0.79478,3146.7,3145.9,0.01023163]
[1642615861212,1.2052,3146.8,3146.0,0.7947061]
[1642615861608,1.2052,3146.8,3146.1,0.00909478]
[1642615862006,2.59483966,3146.8,3146.1,0.00909478]
[1642615862211,2.59483966,3146.8,3146.2,0.7946351]
[1642615862409,1.38963966,3146.8,3145.9,0.01023163]
[1642615862610,0.79474,3146.7,3146.3,0.00795793]
[1642615862809,1.2405644,3146.3,3145.9,0.01023163]
[1642615863415,1.39923709,3146.2,3145.9,0.01023163]
[1642615863611,2.19414709,3146.2,3145.5,0.01250532]
[1642615863815,2.19414709,3146.2,3145.4,0.01307374]
[1642615863816,1.39923709,3146.2,3145.4,0.01307374]
[1642615864648,1.27741547,3145.7,3145.4,0.01307374]
[1642615865048,1.27741547,3145.7,3145.5,0.7947589]
[1642615865247,4.8036,3146.1,3145.4,0.01307374]
[1642615865447,4.8036,3146.1,3145.6,0.0119369]
[1642615865647,1.61259139,3146.6,3145.4,0.01307374]
[1642615865948,4.7211,3146.6,3145.5,0.9533672]
[1642615866147,0.79475,3146.4,3145.5,1.2533672]
[1642615866352,0.79475,3146.4,3145.6,0.0119369]
[1642615866552,1.46484656,3145.8,3145.6,0.0119369]
[1642615866850,1.46484656,3145.8,3145.4,0.01307374]
[1642615867249,1.46484656,3145.8,3145.5,0.01250532]
[1642615867447,1.46484656,3145.8,3145.3,0.7948685]
[1642615867648,1.46484656,3145.8,3145.2,0.01421059]
[1642615867852,1.46484656,3145.8,3145.4,0.01307374]
[1642615868099,1.46484656,3145.8,3145.2,0.01421059]
[1642615868303,1.46484656,3145.8,3145.1,0.01477901]
[1642615868502,3.05500656,3145.8,3145.1,0.01477901]
[1642615868703,1.37278902,3145.3,3145.1,0.01477901]
[1642615869101,0.795,3145.5,3145.1,0.01477901]
[1642615869302,6.0309,3145.7,3145.1,0.01477901]
[1642615869903,6.0309,3145.7,3144.8,0.01648428]
[1642615870105,6.0309,3145.7,3144.9,2.03914114]
[1642615870306,6.0309,3145.7,3145.1,0.3]
[1642615870505,6.0309,3145.7,3145.0,0.31534744]
[1642615870707,6.0309,3145.7,3145.2,0.01421059]
[1642615870905,6.0309,3145.7,3145.1,0.01477901]
[1642615871106,4.8979,3145.7,3145.1,0.31477901]
[1642615871306,4.8979,3145.7,3145.3,1.09724156]
[1642615871511,4.9587,3145.8,3145.3,1.39724156]
[1642615871765,4.9587,3145.8,3145.4,0.01307374]
[1642615872055,9.48809,3146.6,3145.4,3.42222855]
[1642615872056,4.8283,3146.4,3145.4,3.42222855]
[1642615872262,0.67913672,3146.3,3145.5,0.457]
[1642615872459,0.67913672,3146.3,3145.5,0.50405381]
[1642615872659,0.67913672,3146.3,3145.6,0.0119369]
[1642615872859,0.67913672,3146.3,3145.7,0.457]
[1642615873060,0.67913672,3146.3,3145.9,3.07746895]
[1642615873260,0.67913672,3146.3,3145.9,1.5892373]
[1642615873459,0.67913672,3146.3,3146.0,0.3096632]
[1642615873860,0.67913672,3146.3,3146.1,0.00909478]
[1642615875897,0.67913672,3146.3,3146.1,0.80369988]
[1642615876099,0.67913672,3146.3,3146.2,5.20867]
[1642615876299,1.61259139,3147.3,3146.3,1.588794]
[1642615876496,0.67135835,3147.2,3146.4,4.14260671]
[1642615876699,1.61259139,3147.6,3146.9,1.15635381]
[1642615876700,0.67135835,3147.1,3146.9,1.15635381]
[1642615876896,0.67135835,3147.0,3146.5,1.20128119]
[1642615877094,0.67135835,3147.0,3146.4,3.98560671]
[1642615877095,1.09212183,3147.5,3147.0,0.00397897]
[1642615877296,1.09212183,3147.5,3146.9,0.457]
[1642615877497,1.09212183,3147.5,3147.1,0.00341054]
[1642615877498,2.70471322,3147.5,3147.1,0.00341054]
[1642615877696,2.70471322,3147.5,3147.0,0.00397897]
[1642615877697,1.09212183,3147.5,3147.0,0.00397897]
[1642615877898,1.1282563,3147.2,3147.0,0.00397897]
[1642615878097,1.09212183,3147.5,3147.0,0.00397897]
[1642615878300,1.09212183,3147.5,3146.8,0.00511581]
[1642615878502,1.29372563,3146.9,3146.8,0.00511581]
[1642615879103,1.61259139,3147.5,3146.8,0.16378581]
[1642615879552,1.61259139,3147.7,3146.9,0.00454739]
[1642615880150,1.11260088,3147.5,3146.9,0.00454739]
[1642615880351,2.55136794,3147.5,3147.0,0.7943353]
[1642615880553,2.55136794,3147.5,3147.0,0.3]
[1642615880554,2.50136794,3147.5,3147.0,0.3]
[1642615880750,2.50136794,3147.5,3147.1,0.00341054]
[1642615881350,2.50136794,3147.5,3146.8,0.00511581]
[1642615881553,1.32404902,3147.0,3146.8,0.00511581]
[1642615882352,1.32404902,3147.0,3146.7,0.00568424]
[1642615882754,1.47150138,3146.8,3146.6,0.00625266]
[1642615883017,1.32404902,3147.0,3146.6,0.7944889]
[1642615883210,0.81535712,3147.4,3146.6,0.7944889]
[1642615883410,0.81535712,3147.4,3146.7,0.00568424]
[1642615883610,0.81535712,3147.4,3146.7,0.30568424]
[1642615884011,2.18404523,3147.4,3146.8,0.00511581]
[1642615884211,1.38955523,3147.4,3146.8,0.79953301]
[1642615884412,1.38955523,3147.4,3146.9,0.3]
[1642615884413,1.18513266,3147.3,3146.9,0.3]
[1642615884616,1.18513266,3147.3,3146.9,0.30454739]
[1642615884813,1.18513266,3147.3,3147.0,0.00397897]
[1642615885812,1.18513266,3147.3,3146.8,0.00511581]
[1642615886213,0.02086712,3147.4,3146.8,0.00511581]
[1642615886514,0.02086712,3147.4,3146.9,0.58567]
[1642615886746,0.02086712,3147.4,3146.9,3.30594956]
[1642615886944,0.02086712,3147.4,3147.0,0.00397897]
[1642615887154,0.02060362,3147.8,3147.0,0.00397897]
[1642615887346,1.33336401,3147.8,3147.2,2.17348045]
[1642615887548,0.02060362,3147.8,3147.3,0.3]
[1642615887845,0.02060362,3147.8,3147.3,0.3022737]
[1642615888045,0.02060362,3147.8,3147.4,0.00170527]
[1642615888245,0.02060362,3147.8,3147.5,0.15867]
[1642615888446,0.02060362,3147.8,3147.4,0.45870527]
[1642615888646,0.02060362,3147.8,3147.7,3.73882626]
[1642615888846,0.02060362,3147.8,3147.7,3.89749626]
[1642615889047,0.02060362,3147.8,3147.7,5.49749626]
[1642615889251,3.62e-06,3147.8,3147.7,8.39123694]
[1642615889451,3.62e-06,3147.8,3147.7,8.84823694]
[1642615889654,0.00170527,3148.0,3147.8,1.5880594]
[1642615889850,0.00170527,3148.0,3147.9,4.407]
[1642615890051,0.1,3148.2,3147.9,0.91567]
[1642615890251,1.43469468,3148.2,3147.9,0.91567]
[1642615890494,0.00227369,3148.1,3147.9,0.91567]
[1642615890998,0.00170527,3148.0,3147.9,0.91567]
[1642615891699,0.00170527,3148.0,3147.9,5.16567]
[1642615891898,0.00170527,3148.0,3147.9,7.8372032]
[1642615892303,0.00170527,3148.0,3147.9,5.20041559]
[1642615892603,0.00170527,3148.0,3147.9,3.94917063]
[1642615892799,0.00170527,3148.0,3147.9,3.15518063]
[1642615892998,0.00170527,3148.0,3147.9,2.15518063]
[1642615893399,0.00170527,3148.0,3147.9,0.91567]
[1642615893800,0.00170527,3148.0,3147.9,0.757]
[1642615894248,0.00170527,3148.0,3147.9,0.457]
[1642615894445,1.31504573,3148.0,3147.9,0.457]
[1642615894644,1.93961376,3148.0,3147.9,0.457]
[1642615894848,0.6262733,3148.0,3147.9,0.457]
[1642615895448,0.6262733,3148.0,3147.9,0.61567]
[1642615895645,0.6262733,3148.0,3147.9,0.757]
[1642615896345,0.6262733,3148.0,3147.9,0.457]
[1642615897351,0.6262733,3148.0,3147.5,0.00113685]
[1642615897548,0.62456803,3147.9,3147.5,0.00113685]
[1642615897748,0.62456803,3147.8,3147.4,0.3]
[1642615897998,0.00113684,3147.9,3147.3,0.0022737]
[1642615897999,1.24832927,3147.6,3147.3,0.0022737]
[1642615898200,0.62456803,3147.5,3147.2,0.15867]
[1642615898402,1.24832927,3147.6,3147.2,0.9529306]
[1642615898403,0.62031302,3147.4,3147.2,0.9529306]
[1642615898601,0.00113684,3147.9,3147.3,0.3]
[1642615899003,0.00113684,3147.9,3147.4,0.00170527]
[1642615899403,0.00113684,3147.9,3147.4,1.59006057]
[1642615899603,0.00113684,3147.9,3147.4,1.71706057]
[1642615899803,0.62130242,3147.9,3147.5,0.00113685]
[1642615900006,0.62016558,3147.8,3147.5,0.15980685]
[1642615900204,0.62016558,3147.7,3147.5,0.15980685]
[1642615900608,0.62016558,3147.6,3147.5,0.15980685]
[1642615903459,0.62016558,3147.6,3147.5,0.00113685]
[1642615903859,0.62016558,3147.6,3147.5,0.15980685]
[1642615904461,3.67016558,3147.6,3147.5,0.00113685]
[1642615904860,5.14954373,3147.6,3147.3,0.0022737]
[1642615905059,0.62016558,3147.5,3147.3,0.0022737]
[1642615905265,5.27016558,3147.4,3147.3,0.0022737]
[1642615905493,6.44830143,3147.4,3147.3,0.0022737]
[1642615906496,7.54830143,3147.4,3147.3,0.0022737]
[1642615906697,8.73320143,3147.4,3145.9,0.01023163]
[1642615906899,5.87896558,3147.3,3145.9,0.01023163]
[1642615907099,1.47870241,3146.7,3146.0,1.48042379]
[1642615907298,2.59155854,3146.7,3146.0,1.48042379]
[1642615907498,2.59155854,3146.7,3146.1,0.00909478]
[1642615907698,2.59155854,3146.7,3146.1,0.16776478]
[1642615907901,2.59155854,3146.7,3146.1,0.46776478]
[1642615908101,2.59155854,3146.7,3146.2,0.00852636]
[1642615908800,2.54629174,3146.2,3145.9,0.01023163]
[1642615909001,3.9895,3147.2,3145.9,0.01023163]
[1642615909002,0.7947,3146.6,3145.9,0.01023163]
[1642615909242,3.9895,3147.2,3145.9,2.73440081]
[1642615909445,3.9895,3147.2,3146.0,3.40389008]
[1642615909446,0.61261189,3147.1,3146.0,3.40389008]
[1642615909646,0.61261189,3147.1,3146.0,0.5953332]
[1642615909845,0.61261189,3147.1,3146.1,0.00909478]
[1642615910046,1.53712448,3146.6,3146.1,0.00909478]
[1642615910246,1.50254914,3146.2,3146.1,0.00909478]
[1642615912049,1.50254914,3146.2,3146.0,0.0096632]
[1642615912250,1.53712448,3146.6,3145.9,0.01023163]
[1642615912549,5.51311834,3147.2,3145.9,0.01023163]
[1642615912748,0.61313737,3147.1,3145.9,0.01023163]
[1642615913006,0.61313737,3147.1,3145.9,0.13723163]
[1642615913393,1.17791925,3146.6,3146.0,0.0096632]
[1642615913997,1.17791925,3146.6,3146.0,0.3096632]
[1642615914400,1.17791925,3146.6,3146.1,0.00909478]
[1642615914599,1.31538271,3146.3,3146.1,0.00909478]
[1642615914800,1.17791925,3146.6,3146.0,0.0096632]
[1642615915000,1.17791925,3146.6,3146.1,0.15867]
[1642615915199,0.61367748,3146.5,3146.0,0.3096632]
[1642615915401,0.61367748,3146.5,3146.2,0.00852636]
[1642615915603,0.61367748,3146.5,3146.1,0.00909478]
[1642615915804,0.61367748,3146.5,3146.0,0.0096632]
[1642615916001,0.61367748,3146.5,3145.9,0.01023163]
[1642615916400,1.36784523,3146.4,3145.9,0.01023163]
[1642615916851,1.17791925,3146.6,3146.0,0.95239714]
[1642615917051,0.61399486,3146.5,3146.0,1.25239714]
[1642615917251,1.2182,3146.9,3146.1,2.68963967]
[1642615917450,0.6139518,3146.8,3146.1,2.72272611]
[1642615917650,0.6139518,3146.8,3146.2,0.80295636]
[1642615918050,0.6139518,3146.8,3146.3,0.16575637]
[1642615918254,0.6139518,3146.8,3146.3,1.68567274]
[1642615918450,0.6139518,3146.8,3146.4,1.59621071]
[1642615918849,0.6139518,3146.8,3146.5,0.00682109]
[1642615920601,0.6139518,3146.8,3146.5,1.59562069]
[1642615920811,0.6139518,3146.8,3146.6,0.3]
[1642615921105,0.6139518,3146.8,3146.6,0.30625266]
[1642615921305,3.9895,3147.2,3146.7,0.00568424]
[1642615921508,0.61363323,3147.1,3146.7,0.00568424]
[1642615921705,0.61363323,3147.0,3146.7,3.40511248]
[1642615921905,0.61363323,3146.9,3146.8,2.3829282]
[1642615922105,10.4475,3147.3,3146.8,2.68804401]
[1642615922311,10.4475,3147.3,3146.8,2.38804401]
[1642615922312,2.14552509,3147.2,3146.8,2.38804401]
[1642615922505,10.4475,3147.3,3146.8,2.38804401]
[1642615922506,0.61359512,3147.1,3146.9,0.00454739]
[1642615922709,0.61359512,3147.0,3146.9,0.00454739]
[1642615923109,0.61359512,3147.2,3146.9,0.00454739]
[1642615923511,0.61359512,3147.2,3146.7,0.00568424]
[1642615924242,1.11713414,3147.1,3146.7,0.00568424]
[1642615924447,0.61359512,3147.0,3146.7,0.00568424]
[1642615925049,1.20352525,3146.9,3146.7,0.00568424]
[1642615925249,2.96359512,3146.8,3146.7,0.00568424]
[1642615925752,2.96359512,3146.8,3145.8,0.64186938]
[1642615925753,5.75,3146.7,3145.7,7.32]
[1642615925960,0.61359512,3146.6,3145.7,7.32]
[1642615926154,0.61359512,3146.6,3145.8,0.00511581]
[1642615926652,1.40837512,3146.6,3145.8,0.00511581]
[1642615926953,1.09468871,3145.9,3145.5,0.00682108]
[1642615927152,5.2706,3146.4,3145.5,0.00682108]
[1642615927353,0.6119954,3146.3,3145.6,0.00625266]
[1642615927551,0.6119954,3146.3,3145.5,0.30682108]
[1642615927752,0.6119954,3146.3,3145.6,0.00625266]
[1642615927999,1.4068054,3146.3,3145.6,0.00625266]
[1642615928203,0.6119954,3146.2,3145.6,0.00625266]
[1642615928402,0.6119954,3146.2,3145.0,0.127]
[1642615928403,5.75,3146.1,3145.0,0.127]
[1642615928607,5.75,3146.1,3144.0,0.124]
[1642615928608,0.7888054,3146.0,3143.9,0.7951]
[1642615928806,2.22458679,3145.9,3145.1,0.00227369]
[1642615929106,2.22458679,3145.9,3144.2,1.94624885]
[1642615929107,0.7952,3145.4,3144.2,4.61834409]
[1642615929304,0.7388954,3145.3,3144.3,0.00682108]
[1642615929505,5.8671954,3145.2,3144.3,0.00682108]
[1642615929705,0.1269,3145.1,3144.7,1.42155464]
[1642615930111,3.9581,3145.6,3144.8,0.1617774]
[1642615930510,3.9581,3145.6,3144.9,3.46657797]
[1642615930708,3.9581,3145.6,3145.0,0.28479844]
[1642615931010,6.16589709,3145.7,3145.2,1.32711443]
[1642615931212,6.16589709,3145.7,3145.0,2.35011056]
[1642615931410,6.16589709,3145.7,3145.3,0.00113685]
[1642615931411,6.16703394,3145.7,3145.3,0.00113685]
[1642615931858,1.19303394,3145.7,3145.3,0.00113685]
[1642615932251,0.02038575,3145.5,3144.9,0.00341054]
[1642615932451,2.42859217,3145.2,3144.9,0.00341054]
[1642615932650,2.42859217,3145.2,3144.5,1.21445896]
[1642615932651,1.23605902,3145.2,3144.7,0.00454739]
[1642615933051,0.02038575,3145.5,3144.7,0.00454739]
[1642615933465,0.02038575,3145.5,3144.8,0.79492]
[1642615933857,0.02038575,3145.5,3144.9,0.00341054]
[1642615935059,1.28625876,3145.4,3144.9,0.00341054]
[1642615935499,1.23625876,3145.4,3144.9,0.00341054]
[1642615935698,2.80126946,3145.3,3144.9,0.00341054]
[1642615935903,1.36315876,3145.4,3144.6,0.00511581]
[1642615935904,1.65074113,3145.2,3144.6,0.00511581]
[1642615936098,1.65074113,3145.2,3144.4,0.00625266]
[1642615936099,1.52384113,3145.2,3144.4,0.00625266]
[1642615936402,1.44024481,3144.5,3144.0,0.00852635]
[1642615937000,0.1269,3145.1,3144.0,0.80365635]
[1642615937204,0.1269,3145.1,3144.1,0.31202473]
[1642615937401,0.1269,3145.1,3144.1,0.31998266]
[1642615937601,0.1269,3145.1,3144.2,0.0073895]
[1642615937803,0.02031261,3145.2,3144.2,0.96021794]
[1642615938000,0.02031261,3145.2,3144.3,1.87473326]
[1642615938301,0.02031261,3145.2,3144.6,0.7948809]
[1642615938500,0.02031261,3145.2,3144.6,1.0948809]
[1642615938700,0.02031261,3145.2,3144.7,0.00454739]
[1642615939844,0.02031261,3145.2,3144.7,0.16234583]
[1642615940044,0.02031261,3145.2,3144.7,0.00454739]
[1642615940244,0.02031261,3145.2,3144.8,0.00397896]
[1642615940446,0.02031261,3145.2,3144.3,0.00682108]
[1642615940848,0.02031261,3145.2,3144.4,0.7950071]
[1642615941146,1.51885779,3145.0,3144.5,1.24931065]
[1642615941348,0.02031261,3145.2,3144.5,1.54931065]
[1642615941649,0.02031261,3145.2,3144.6,0.00511581]
[1642615942246,0.02031261,3145.2,3144.7,0.79495]
[1642615942546,0.02031261,3145.2,3144.8,0.00397896]
[1642615942747,0.02031261,3145.2,3144.8,0.30397896]
[1642615943009,0.02031261,3145.2,3144.9,0.91479844]
[1642615943205,0.02031261,3145.2,3145.0,0.7947978]
[1642615943407,0.02031261,3145.2,3145.1,0.3]
[1642615943605,0.02031261,3145.2,3145.1,7.75108903]
[1642615944310,0.02031261,3145.2,3145.1,0.91479844]
[1642615944507,0.02031261,3145.2,3145.1,0.757]
[1642615944706,0.02031261,3145.2,3145.1,0.457]
[1642615946012,0.02031261,3145.2,3145.1,0.407]
[1642615946410,0.02031261,3145.2,3145.1,2.43271987]
[1642615946613,0.00113685,3145.7,3145.2,5.75]
[1642615946854,0.00113685,3145.7,3145.4,0.7947]
[1642615947049,0.00113685,3145.7,3145.5,0.457]
[1642615947450,0.00113685,3145.7,3145.5,0.757]
[1642615947653,0.00113685,3145.7,3145.5,0.457]
[1642615947853,0.00113685,3145.7,3145.5,2.0464]
[1642615948053,0.00113685,3145.7,3145.6,0.3]
[1642615949257,0.00113685,3145.7,3145.6,6.20779844]